bitfinex/quotes_SOLUSD_20241218
["timestamp","ask_amount","ask_price","bid_price","bid_amount"]
[1734544327002,20.02333922,216.98,216.91,0.12549]
[1734544327515,20.02333922,216.97,216.91,0.12549]
[1734544327679,20.02333922,216.97,216.9,0.12549]
[1734544328822,20.02333922,217.01,216.94,0.12549]
[1734544329002,6.2454,217.08,216.98,0.12549]
[1734544329201,20.02333922,217.05,216.98,0.12549]
[1734544329611,6.2454,217.08,216.87,0.69115583]
[1734544329612,20.02333922,217.03,216.95,20.02333922]
[1734544329779,20.02333922,217.0,216.92,20.02333922]
[1734544329984,1.1517,217.06,216.92,20.02333922]
[1734544329985,20.02333922,216.99,216.92,20.02333922]
[1734544330206,20.02333922,217.0,216.93,0.12549]
[1734544330579,20.02333922,216.99,216.93,0.12549]
[1734544331084,20.02333922,217.03,216.96,0.12549]
[1734544331396,20.02333922,217.03,216.97,0.12549]
[1734544331713,20.02333922,217.05,216.97,20.14882922]
[1734544332010,20.02333922,217.06,216.99,0.12549]
[1734544332388,20.02333922,217.05,216.97,20.02333922]
[1734544332579,20.02333922,217.04,216.98,0.12549]
[1734544333074,20.02333922,217.04,216.92,0.12549]
[1734544333405,20.02333922,217.05,216.98,0.12549]
[1734544333910,26.26873922,217.08,217.0,20.14882922]
[1734544334081,20.02333922,217.04,216.97,20.02333922]
[1734544334409,20.02333922,217.03,216.95,20.02333922]
[1734544334583,20.02333922,217.01,216.94,20.02333922]
[1734544334772,1.1517,217.07,216.92,23.776884]
[1734544334773,20.02333922,217.04,216.97,20.14882922]
[1734544334980,20.02333922,217.07,217.0,0.12549]
[1734544335498,20.02333922,217.08,217.0,20.14882922]
[1734544335683,20.02333922,217.09,217.02,0.12549]
[1734544335884,20.02333922,217.09,217.02,20.14882922]
[1734544336295,20.02333922,217.09,217.01,20.02333922]
[1734544336508,20.02333922,217.06,216.99,20.02333922]
[1734544336998,20.02333922,217.07,217.0,0.12549]
[1734544337318,20.02333922,217.08,217.0,20.14882922]
[1734544337620,20.02333922,217.09,217.02,0.12549]
[1734544337825,20.02333922,217.07,217.02,0.12549]
[1734544338116,21.1515,217.11,216.98,20.02333922]
[1734544338117,20.02333922,217.05,216.98,20.02333922]
[1734544339124,20.02333922,217.04,216.91,19.2854]
[1734544339414,20.02333922,216.97,216.91,1.5094]
[1734544339624,20.02333922,216.96,216.89,20.02333922]
[1734544339808,20.02333922,216.96,216.88,20.02333922]
[1734544339997,20.02333922,216.96,216.89,0.12549]
[1734544340189,20.02333922,216.97,216.91,0.12549]
[1734544340808,20.02333922,216.99,216.91,20.02333922]
[1734544341013,20.02333922,216.96,216.88,20.02333922]
[1734544341402,20.02333922,216.96,216.89,20.02333922]
[1734544342341,20.02333922,216.96,216.88,20.02333922]
[1734544342627,20.02333922,216.96,216.89,20.14882922]
[1734544342816,20.02333922,216.97,216.9,20.02333922]
[1734544343526,20.02333922,216.97,216.9,0.12549]
[1734544344623,20.02333922,216.97,216.9,20.02333922]
[1734544344827,20.02333922,216.99,216.91,20.14882922]
[1734544345326,20.02333922,216.98,216.91,20.14882922]
[1734544345714,20.02333922,216.99,216.91,20.14882922]
[1734544345917,20.02333922,217.0,216.93,0.12549]
[1734544346130,20.02333922,217.0,216.93,20.14882922]
[1734544346831,20.02333922,217.01,216.91,0.12549]
[1734544347007,20.02333922,217.0,216.94,0.12549]
[1734544347622,20.02333922,217.0,216.93,20.14882922]
[1734544347824,20.02333922,217.01,216.95,0.12549]
[1734544348208,20.02333922,216.98,216.92,20.02333922]
[1734544348412,12.50928766,216.99,216.91,12.50928766]
[1734544348617,12.50928766,217.0,216.93,0.12549]
[1734544349632,12.50928766,217.0,216.94,0.12549]
[1734544349936,20.0,217.04,216.94,12.63477766]
[1734544350113,12.50928766,217.02,216.94,12.63477766]
[1734544351332,12.50928766,217.04,216.97,12.63477766]
[1734544352039,12.50928766,217.05,216.97,12.63477766]
[1734544353411,12.50928766,217.05,216.97,12.50928766]
[1734544354113,12.50928766,217.05,216.98,0.12549]
[1734544355944,12.50928766,217.03,216.95,12.50928766]
[1734544356146,12.50928766,216.99,216.93,12.50928766]
[1734544356526,12.50928766,217.0,216.93,12.50928766]
[1734544358151,12.50928766,217.0,216.94,0.12549]
[1734544359344,12.50928766,217.0,216.92,0.12549]
[1734544360531,12.50928766,216.97,216.89,32.50928766]
[1734544360837,12.50928766,216.96,216.88,12.50928766]
[1734544361008,12.50928766,216.91,216.81,1.6035]
[1734544361209,12.50928766,216.92,216.84,12.50928766]
[1734544361438,12.50928766,216.93,216.86,12.50928766]
[1734544361739,12.50928766,216.97,216.9,12.50928766]
[1734544361909,12.50928766,216.96,216.89,12.50928766]
[1734544362109,12.50928766,216.96,216.88,12.63477766]
[1734544363642,12.50928766,216.94,216.86,12.50928766]
[1734544363816,12.50928766,216.92,216.81,1.6035]
[1734544364024,12.50928766,216.9,216.81,1.6035]
[1734544364336,12.50928766,216.89,216.82,0.12549]
[1734544364527,12.50928766,216.89,216.81,12.50928766]
[1734544365237,12.50928766,216.87,216.79,12.50928766]
[1734544365433,12.50928766,216.86,216.79,12.50928766]
[1734544365746,12.50928766,216.89,216.82,12.63477766]
[1734544365917,1.1523,216.95,216.8,0.12549]
[1734544365918,12.50928766,216.92,216.85,12.63477766]
[1734544366119,12.50928766,216.93,216.87,0.12549]
[1734544366865,12.50928766,216.92,216.86,0.12549]
[1734544367457,12.50928766,216.93,216.87,0.12549]
[1734544367747,12.50928766,216.95,216.89,0.12549]
[1734544367923,12.50928766,216.97,216.9,12.50928766]
[1734544368748,12.50928766,216.97,216.9,0.12549]
[1734544370052,12.50928766,216.96,216.9,0.12549]
[1734544370256,6.0802,216.99,216.85,12.50928766]
[1734544370257,12.50928766,216.93,216.85,12.50928766]
[1734544370433,12.50928766,216.94,216.87,12.50928766]
[1734544370936,12.50928766,216.95,216.88,12.50928766]
[1734544371651,12.50928766,216.93,216.86,12.50928766]
[1734544371949,12.50928766,216.94,216.87,12.50928766]
[1734544372135,12.50928766,216.94,216.86,12.50928766]
[1734544373429,12.50928766,216.93,216.86,12.50928766]
[1734544373845,12.50928766,216.9,216.83,12.50928766]
[1734544374257,12.50928766,216.9,216.84,0.12549]
[1734544374663,12.50928766,216.88,216.81,12.50928766]
[1734544375343,12.50928766,216.89,216.82,12.63477766]
[1734544375559,12.50928766,216.91,216.84,12.50928766]
[1734544375943,12.50928766,216.91,216.78,0.69159074]
[1734544375944,14.06528766,216.93,216.85,12.63477766]
[1734544376155,12.50928766,216.92,216.85,12.63477766]
[1734544376546,12.50928766,216.91,216.85,0.12549]
[1734544379068,12.50928766,216.9,216.83,12.50928766]
[1734544379266,12.50928766,216.88,216.81,12.50928766]
[1734544379478,12.50928766,216.89,216.81,12.50928766]
[1734544379681,12.50928766,216.89,216.82,0.12549]
[1734544380169,12.50928766,216.85,216.78,12.50928766]
[1734544380472,12.50928766,216.83,216.76,14.04758766]
[1734544380651,12.50928766,216.83,216.77,0.12549]
[1734544381546,12.50928766,216.83,216.76,14.04758766]
[1734544381749,12.50928766,216.82,216.75,12.50928766]
[1734544381945,12.50928766,216.86,216.79,12.50928766]
[1734544382266,12.50928766,216.87,216.8,12.50928766]
[1734544382473,18.82088766,216.89,216.81,12.50928766]
[1734544382849,12.50928766,216.88,216.81,12.50928766]
[1734544383876,18.82088766,216.89,216.81,12.50928766]
[1734544384169,18.82088766,216.89,216.82,0.12549]
[1734544384474,12.50928766,216.9,216.83,12.50928766]
[1734544384771,12.50928766,216.9,216.82,12.63477766]
[1734544385768,12.50928766,216.9,216.83,12.50928766]
[1734544387567,7.6294,216.95,216.79,0.12549]
[1734544387568,7.6294,216.95,216.86,12.50928766]
[1734544387774,12.50928766,216.94,216.86,12.50928766]
[1734544388282,12.50928766,216.94,216.87,12.50928766]
[1734544388883,12.50928766,216.94,216.88,0.12549]
[1734544389082,12.50928766,216.97,216.9,0.12549]
[1734544389393,12.50928766,216.98,216.9,12.63477766]
[1734544390088,12.50928766,216.98,216.91,12.50928766]
[1734544390264,12.50928766,217.0,216.92,12.63477766]
[1734544390470,12.50928766,217.02,216.95,12.50928766]
[1734544390785,12.50928766,217.03,216.96,0.12549]
[1734544391089,12.50928766,217.02,216.95,0.12549]
[1734544391493,12.50928766,217.03,216.95,12.63477766]
[1734544391893,12.50928766,217.01,216.95,0.12549]
[1734544392364,12.50928766,217.02,216.95,0.12549]
[1734544393174,12.50928766,217.02,216.96,0.12549]
[1734544393493,12.50928766,217.03,216.96,12.63477766]
[1734544393807,12.50928766,217.0,216.96,0.12549]
[1734544394090,12.50928766,216.97,216.92,20.0]
[1734544394298,23.776884,217.06,216.85,0.69117923]
[1734544394299,12.50928766,216.96,216.88,12.50928766]
[1734544394494,12.50928766,216.96,216.89,12.50928766]
[1734544394665,12.50928766,216.97,216.91,0.12549]
[1734544394867,12.50928766,216.98,216.91,12.63477766]
[1734544395304,12.50928766,216.97,216.91,0.12549]
[1734544396999,2.3034,217.07,216.94,0.12549]
[1734544397000,12.50928766,217.0,216.94,0.12549]
[1734544397206,12.50928766,217.02,216.94,12.50928766]
[1734544397367,12.50928766,216.97,216.91,20.0]
[1734544397568,12.50928766,216.97,216.85,4.20917005]
[1734544397569,12.50928766,216.97,216.89,12.50928766]
[1734544397985,12.50928766,216.97,216.9,12.50928766]
[1734544398271,12.50928766,216.97,216.91,0.12549]
[1734544398695,12.50928766,216.96,216.9,0.12549]
[1734544400719,12.50928766,216.96,216.88,12.50928766]
[1734544401017,12.50928766,216.97,216.89,12.63477766]
[1734544401194,12.50928766,216.98,216.91,12.63477766]
[1734544401518,12.50928766,217.0,216.93,0.12549]
[1734544402021,12.50928766,216.99,216.93,0.12549]
[1734544402916,12.50928766,217.03,216.96,0.12549]
[1734544403090,12.50928766,217.03,216.96,12.63477766]
[1734544403420,12.50928766,217.03,216.98,0.12549]
[1734544403601,12.50928766,217.02,216.98,0.12549]
[1734544403803,12.50928766,217.02,216.95,0.12549]
[1734544404328,12.50928766,217.02,216.95,12.63477766]
[1734544404488,12.50928766,217.02,216.97,0.12549]
[1734544404914,12.50928766,217.03,216.97,0.12549]
[1734544405920,12.50928766,217.06,217.0,0.12549]
[1734544406122,12.50928766,217.06,216.99,12.50928766]
[1734544406335,12.50928766,217.05,216.98,12.50928766]
[1734544406810,12.50928766,217.06,216.99,12.63477766]
[1734544407394,12.50928766,217.02,216.95,12.50928766]
[1734544407688,12.50928766,217.01,216.94,14.02618766]
[1734544407906,12.50928766,217.03,216.95,12.50928766]
[1734544408133,12.50928766,217.03,216.96,0.12549]
[1734544408292,12.50928766,217.02,216.96,0.12549]
[1734544409330,12.50928766,217.03,216.96,0.12549]
[1734544410122,12.50928766,217.05,216.98,12.63477766]
[1734544410313,12.50928766,217.06,217.0,0.12549]
[1734544410984,12.50928766,217.07,216.95,12.21453125]
[1734544411181,12.50928766,217.05,217.0,0.12549]
[1734544411404,12.50928766,217.05,216.98,32.50928766]
[1734544413747,12.50928766,217.05,216.99,0.12549]
[1734544415089,12.50928766,217.03,216.96,12.50928766]
[1734544415249,12.50928766,217.03,216.94,14.02618766]
[1734544416343,12.50928766,217.03,216.95,12.63477766]
[1734544418849,12.50928766,217.05,216.97,12.50928766]
[1734544419059,12.50928766,217.01,216.94,21.5169]
[1734544420963,12.50928766,217.03,216.95,12.63477766]
[1734544422056,1.1516,217.09,216.95,12.63477766]
[1734544422057,12.50928766,217.05,216.97,12.50928766]
[1734544423925,12.50928766,217.09,217.01,12.50928766]
[1734544424124,12.50928766,217.07,216.99,12.50928766]
[1734544424553,12.50928766,217.06,216.99,12.50928766]
[1734544425466,12.50928766,217.05,216.94,1.5169]
[1734544425621,12.50928766,217.01,216.94,12.50928766]
[1734544426027,8.00686298,216.98,216.88,1.6294]
[1734544426460,8.00686298,216.98,216.9,8.00686298]
[1734544427630,8.00686298,216.98,216.92,8.00686298]
[1734544427943,1.1519,217.02,216.89,0.12549]
[1734544428148,12.50910783,216.99,216.92,12.50910783]
[1734544428356,12.50910783,217.0,216.92,12.50910783]
[1734544429069,12.50910783,217.0,216.93,12.50910783]
[1734544429669,12.50910783,217.0,216.91,12.50910783]
[1734544429869,18.51920783,217.0,216.91,12.50910783]
[1734544431575,18.51920783,217.0,216.89,0.12549]
[1734544431576,12.50910783,216.98,216.89,12.50910783]
[1734544431752,12.50910783,216.94,216.85,12.50910783]
[1734544431955,12.50910783,216.92,216.83,14.11320783]
[1734544432268,12.50910783,216.89,216.83,12.50910783]
[1734544433645,12.50910783,216.89,216.84,23.776884]
[1734544434278,12.50910783,216.85,216.79,12.50910783]
[1734544435337,12.50910783,216.85,216.73,1.5306]
[1734544435338,12.50910783,216.83,216.76,12.50910783]
[1734544435543,12.50910783,216.82,216.75,12.50910783]
[1734544435758,12.50910783,216.81,216.74,12.50910783]
[1734544436041,12.50910783,216.79,216.71,12.50910783]
[1734544436243,12.50910783,216.78,216.71,12.50910783]
[1734544436457,12.50910783,216.77,216.7,12.50910783]
[1734544436646,12.50910783,216.75,216.68,1.6484]
[1734544436843,6.0819,216.8,216.62,1.5738]
[1734544436844,12.50910783,216.73,216.62,1.5738]
[1734544437075,12.50910783,216.72,216.64,12.50910783]
[1734544437298,12.50910783,216.71,216.64,12.50910783]
[1734544437756,12.50910783,216.7,216.64,0.12549]
[1734544438264,12.50910783,216.75,216.67,12.50910783]
[1734544438435,1.1532,216.79,216.62,1.5738]
[1734544438436,12.50910783,216.76,216.69,0.12549]
[1734544438641,12.50910783,216.76,216.69,12.63459783]
[1734544439071,12.50910783,216.77,216.7,12.50910783]
[1734544439242,12.50910783,216.79,216.72,12.50910783]
[1734544439570,12.50910783,216.82,216.76,23.776884]
[1734544439977,12.50910783,216.8,216.75,23.776884]
[1734544440281,12.50910783,216.8,216.73,23.902374]
[1734544440454,12.50910783,216.8,216.73,36.41148183]
[1734544440657,12.50910783,216.81,216.75,23.776884]
[1734544441406,6.0541,216.85,216.75,23.776884]
[1734544441407,6.0541,216.85,216.77,23.776884]
[1734544441693,12.50910783,216.89,216.82,23.776884]
[1734544441872,18.56320783,216.91,216.83,12.50910783]
[1734544442075,12.50910783,216.92,216.84,36.28599183]
[1734544442279,12.50910783,216.93,216.85,12.50910783]
[1734544442458,12.50910783,216.93,216.86,23.776884]
[1734544442785,12.50910783,216.92,216.86,23.776884]
[1734544442983,12.50910783,216.94,216.86,36.28599183]
[1734544443282,12.50910783,216.95,216.88,12.50910783]
[1734544443495,12.50910783,216.97,216.89,36.28599183]
[1734544444276,12.50910783,216.95,216.89,23.776884]
[1734544444595,6.0541,216.98,216.87,23.776884]
[1734544444596,12.50910783,216.94,216.87,23.776884]
[1734544444819,12.50910783,216.93,216.87,23.776884]
[1734544445269,12.50910783,216.95,216.87,36.28599183]
[1734544445589,12.50910783,216.96,216.89,23.776884]
[1734544446166,12.50910783,216.94,216.87,36.28599183]
[1734544446679,12.50910783,216.95,216.87,36.28599183]
[1734544448931,6.0541,216.98,216.9,23.902374]
[1734544449224,6.0541,216.98,216.88,0.12549]
[1734544449225,12.50910783,216.99,216.92,23.776884]
[1734544452227,12.50910783,216.93,216.85,14.03680783]
[1734544452666,12.50910783,216.93,216.86,12.63459783]
[1734544453522,12.50910783,216.93,216.87,23.776884]
[1734544454732,12.50910783,216.92,216.84,12.50910783]
[1734544455027,12.50910783,216.9,216.82,12.50910783]
[1734544455917,12.50910783,216.91,216.84,23.776884]
[1734544456230,12.50910783,216.91,216.84,36.28599183]
[1734544456636,1.1521,216.98,216.84,36.28599183]
[1734544456637,12.50910783,216.99,216.91,23.776884]
[1734544456821,12.50910783,216.99,216.91,36.28599183]
[1734544457321,12.50910783,216.98,216.91,36.28599183]
[1734544458221,1.6189,217.02,216.82,1.88778488]
[1734544458222,12.50910783,216.92,216.82,1.88778488]
[1734544458425,12.50910783,216.91,216.85,23.776884]
[1734544458643,12.50910783,216.91,216.85,36.28599183]
[1734544458951,12.50910783,216.93,216.86,0.12549]
[1734544459112,12.50910783,216.95,216.87,12.50910783]
[1734544459313,12.50910783,216.93,216.85,36.28599183]
[1734544459523,20.0,217.0,216.83,12.50910783]
[1734544459524,12.50910783,216.9,216.83,12.50910783]
[1734544460244,1.1524,216.93,216.8,14.11840783]
[1734544460445,12.50910783,216.92,216.85,0.12549]
[1734544460745,12.50910783,216.93,216.86,12.63459783]
[1734544460945,12.50910783,216.94,216.86,12.63459783]
[1734544461432,12.50910783,216.93,216.87,23.776884]
[1734544464064,12.50910783,216.93,216.86,0.12549]
[1734544464065,12.50910783,216.93,216.85,23.902374]
[1734544466532,12.50910783,216.93,216.87,23.776884]
[1734544468565,12.50910783,216.93,216.85,23.902374]
[1734544469157,12.50910783,216.93,216.63,43.23630891]
[1734544469158,12.50910783,216.87,216.76,5.8693285]
[1734544469451,12.50910783,216.87,216.75,1.579]
[1734544469452,12.50910783,216.85,216.77,12.50910783]
[1734544469654,12.50910783,216.85,216.78,0.12549]
[1734544469867,12.50910783,216.87,216.8,0.12549]
[1734544470167,12.50910783,216.89,216.79,12.50910783]
[1734544470665,12.50910783,216.89,216.8,23.776884]
[1734544470961,12.50910783,216.89,216.82,23.776884]
[1734544471464,12.50910783,216.91,216.83,12.50910783]
[1734544472633,12.50910783,216.93,216.86,0.12549]
[1734544472838,12.50910783,216.89,216.82,23.776884]
[1734544473040,12.50910783,216.92,216.84,12.50910783]
[1734544475146,12.50910783,216.88,216.8,12.50910783]
[1734544475472,12.50910783,216.86,216.78,12.50910783]
[1734544475772,12.50910783,216.82,216.75,1.579]
[1734544476079,12.50910783,216.8,216.72,12.50910783]
[1734544477573,12.50910783,216.8,216.73,23.776884]
[1734544477978,12.50910783,216.78,216.7,14.13120783]
[1734544479367,12.50910783,216.78,216.71,23.902374]
[1734544479575,12.50910783,216.8,216.73,23.776884]
[1734544480567,12.50910783,216.84,216.76,23.902374]
[1734544480768,12.50910783,216.84,216.77,12.50910783]
[1734544482275,12.50910783,216.86,216.79,12.50910783]
[1734544482466,12.50910783,216.88,216.82,12.50910783]
[1734544482852,12.50910783,216.84,216.76,23.776884]
[1734544483459,12.50910783,216.84,216.77,12.50910783]
[1734544483851,12.50910783,216.84,216.76,23.776884]
[1734544484492,20.0,216.81,216.7,1.6221]
[1734544484665,12.50910783,216.78,216.7,14.13120783]
[1734544484973,12.50910783,216.8,216.73,0.12549]
[1734544485654,6.5046,216.82,216.72,12.50910783]
[1734544485655,12.50910783,216.82,216.76,12.50910783]
[1734544485979,12.50910783,216.86,216.78,12.50910783]
[1734544486773,12.50910783,216.87,216.79,12.50910783]
[1734544486974,12.50910783,216.86,216.78,12.50910783]
[1734544488192,12.50910783,216.84,216.76,12.50910783]
[1734544488490,12.50910783,216.8,216.72,12.50910783]
[1734544489300,12.50910783,216.78,216.7,14.13120783]
[1734544489505,12.50910783,216.8,216.72,12.50910783]
[1734544490565,12.50910783,216.8,216.73,23.776884]
[1734544491273,12.50910783,216.82,216.74,12.50910783]
[1734544492717,12.50910783,216.76,216.67,6.2658]
[1734544492899,12.50910783,216.76,216.67,12.50910783]
[1734544493294,12.50910783,216.76,216.68,0.12549]
[1734544493805,12.50910783,216.76,216.69,12.50910783]
[1734544494215,12.50910783,216.76,216.7,23.776884]
[1734544497333,12.50910783,216.8,216.73,12.50910783]
[1734544497815,12.50910783,216.8,216.72,23.776884]
[1734544499821,1.5486,216.87,216.78,12.63459783]
[1734544500000,12.50910783,216.87,216.8,12.50910783]
[1734544500200,12.50910783,216.87,216.78,12.50910783]
[1734544500414,12.50910783,216.85,216.78,12.50910783]
[1734544500717,12.50910783,216.86,216.78,12.50910783]
[1734544500907,12.50910783,216.87,216.79,12.50910783]
[1734544501502,12.50910783,216.86,216.78,12.50910783]
[1734544501924,12.50910783,216.86,216.79,12.50910783]
[1734544502627,12.50910783,216.87,216.79,12.50910783]
[1734544502803,12.50910783,216.89,216.81,12.50910783]
[1734544503001,12.50910783,216.89,216.82,12.50910783]
[1734544505418,12.50910783,216.88,216.8,36.41148183]
[1734544506537,12.50910783,216.89,216.81,12.50910783]
[1734544506830,12.50910783,216.87,216.8,36.41148183]
[1734544507028,12.50910783,216.86,216.8,0.12549]
[1734544507216,12.50910783,216.86,216.79,23.776884]
[1734544507416,12.50910783,216.85,216.78,23.776884]
[1734544507615,12.50910783,216.86,216.78,12.50910783]
[1734544507817,12.50910783,216.84,216.77,12.50910783]
[1734544508128,12.50910783,216.83,216.76,36.28599183]
[1734544508628,12.50910783,216.83,216.77,0.12549]
[1734544508931,12.50910783,216.85,216.78,23.776884]
[1734544509143,12.50910783,216.87,216.8,23.776884]
[1734544509319,12.50910783,216.88,216.8,36.28599183]
[1734544509518,12.50910783,216.88,216.81,0.12549]
[1734544510055,12.50910783,216.88,216.82,23.776884]
[1734544510264,12.50910783,216.89,216.82,12.50910783]
[1734544510423,12.50910783,216.88,216.81,0.12549]
[1734544510954,12.50910783,216.88,216.81,12.63459783]
[1734544511130,12.50910783,216.89,216.82,12.50910783]
[1734544511325,12.50910783,216.88,216.82,23.776884]
[1734544512652,12.50910783,216.87,216.79,12.50910783]
[1734544512863,12.50910783,216.86,216.79,12.50910783]
[1734544513045,12.50910783,216.87,216.79,12.50910783]
[1734544513241,12.50910783,216.88,216.81,12.50910783]
[1734544513642,12.50910783,216.89,216.82,12.50910783]
[1734544513962,12.50910783,216.9,216.82,12.50910783]
[1734544514140,12.50910783,216.9,216.83,23.776884]
[1734544514719,12.50910783,216.92,216.84,12.63459783]
[1734544515016,12.50910783,216.93,216.86,23.776884]
[1734544515216,12.50910783,216.92,216.86,23.776884]
[1734544515654,12.50910783,216.93,216.86,23.776884]
[1734544516252,12.50910783,216.92,216.85,12.50910783]
[1734544516464,12.50910783,216.9,216.84,23.776884]
[1734544516638,12.50910783,216.9,216.83,23.902374]
[1734544516840,12.50910783,216.88,216.81,23.776884]
[1734544517432,12.50910783,216.89,216.82,0.12549]
[1734544517947,12.50910783,216.88,216.81,23.776884]
[1734544518130,12.50910783,216.89,216.81,36.28599183]
[1734544518332,12.50910783,216.89,216.81,12.50910783]
[1734544518762,12.50910783,216.85,216.77,12.50910783]
[1734544518961,12.50910783,216.81,216.73,12.50910783]
[1734544519264,7.7493,216.89,216.72,12.50910783]
[1734544519265,12.50910783,216.79,216.72,12.50910783]
[1734544519447,12.50910783,216.82,216.74,12.50910783]
[1734544519649,12.50910783,216.84,216.76,12.50910783]
[1734544520542,12.50910783,216.84,216.77,23.776884]
[1734544521443,12.50910783,216.84,216.77,36.28599183]
[1734544521642,12.50910783,216.88,216.81,36.28599183]
[1734544521839,12.50910783,216.9,216.83,36.28599183]
[1734544522049,12.50910783,216.92,216.84,12.63459783]
[1734544522253,12.50910783,216.92,216.85,36.28599183]
[1734544522784,18.89590783,216.94,216.87,12.50910783]
[1734544522942,12.50910783,216.94,216.87,12.50910783]
[1734544523146,12.50910783,216.95,216.88,23.902374]
[1734544523362,12.50910783,216.96,216.88,36.41148183]
[1734544523954,12.50910783,216.95,216.88,23.902374]
[1734544525172,12.50910783,216.93,216.86,23.776884]
[1734544525956,12.50910783,216.93,216.87,0.12549]
[1734544526247,12.50910783,216.91,216.83,12.50910783]
[1734544526636,12.50910783,216.91,216.84,0.12549]
[1734544526837,12.50910783,216.91,216.83,12.50910783]
[1734544527279,12.50910783,216.91,216.84,0.12549]
[1734544527594,12.50910783,216.89,216.81,12.50910783]
[1734544527740,12.50910783,216.87,216.8,1.6154]
[1734544528173,12.50910783,216.87,216.79,12.50910783]
[1734544528550,12.50910783,216.85,216.77,12.50910783]
[1734544528961,12.50910783,216.87,216.79,12.50910783]
[1734544530247,12.50910783,216.87,216.8,23.902374]
[1734544530546,12.50910783,216.89,216.81,12.50910783]
[1734544530980,12.50910783,216.9,216.83,23.902374]
[1734544531160,12.50910783,216.92,216.85,12.63459783]
[1734544531475,12.50910783,216.94,216.86,23.776884]
[1734544531769,12.50910783,216.95,216.87,12.50910783]
[1734544531956,12.50910783,216.95,216.88,36.28599183]
[1734544532362,12.50910783,216.96,216.88,36.28599183]
[1734544532670,6.2592,216.98,216.91,0.12549]
[1734544532671,18.76830783,216.98,216.91,0.12549]
[1734544532852,12.50910783,217.0,216.92,12.50910783]
[1734544533870,12.50910783,217.02,216.95,12.50910783]
[1734544534053,12.50910783,217.03,216.95,12.50910783]
[1734544534750,12.50910783,217.03,216.96,12.50910783]
[1734544535354,12.50910783,217.04,216.97,12.50910783]
[1734544535558,12.50910783,217.05,216.97,12.50910783]
[1734544537478,12.50910783,217.05,216.98,12.50910783]
[1734544537683,12.50910783,217.05,216.97,12.50910783]
[1734544537874,12.50910783,217.04,216.97,12.50910783]
[1734544538383,12.50910783,217.04,216.97,0.12549]
[1734544538559,12.50910783,217.04,216.97,23.902374]
[1734544538759,12.50910783,216.99,216.91,12.50910783]
[1734544538959,12.50910783,217.04,216.96,12.50910783]
[1734544539186,12.50910783,217.05,216.97,12.50910783]
[1734544539358,12.50910783,217.05,216.98,0.12549]
[1734544539562,12.50910783,217.05,216.99,0.12549]
[1734544541281,12.50910783,217.06,216.99,12.63459783]
[1734544541583,18.86380783,217.1,217.02,12.63459783]
[1734544541765,12.50910783,217.09,217.02,12.63459783]
[1734544541952,12.50910783,217.05,216.99,20.0]
[1734544542150,12.50910783,217.05,216.98,23.776884]
[1734544542673,12.50910783,217.05,216.99,0.12549]
[1734544543198,12.50910783,217.06,216.99,12.63459783]
[1734544544073,12.50910783,217.06,217.0,23.776884]
[1734544544702,12.50910783,217.05,216.99,0.12549]
[1734544544996,12.50910783,217.05,216.97,12.50910783]
[1734544545180,12.50910783,217.05,216.99,0.12549]
[1734544546178,12.50910783,217.05,216.98,23.776884]
[1734544546394,12.50910783,217.04,216.98,23.776884]
[1734544546774,12.50910783,217.0,216.9,1.6271]
[1734544546978,12.50910783,217.02,216.94,12.50910783]
[1734544547196,12.50910783,217.02,216.95,12.50910783]
[1734544547498,12.50910783,217.02,216.96,0.12549]
[1734544547676,12.50910783,217.03,216.96,0.12549]
[1734544548094,12.50910783,217.02,216.95,23.902374]
[1734544548290,12.50910783,217.04,216.97,12.50910783]
[1734544548594,12.50910783,217.03,216.96,12.50910783]
[1734544548983,12.50910783,217.03,216.96,0.12549]
[1734544549180,12.50910783,217.03,216.96,23.902374]
[1734544550797,12.50910783,217.03,216.92,20.0]
[1734544550798,12.50910783,217.0,216.94,23.776884]
[1734544551109,12.50910783,217.02,216.94,36.28599183]
[1734544552113,12.50910783,217.03,216.96,12.50910783]
[1734544552411,12.50910783,217.05,216.96,12.50910783]
[1734544553410,12.50910783,217.05,216.93,23.776884]
[1734544553411,12.50910783,217.01,216.94,12.50910783]
[1734544553605,12.50910783,217.02,216.94,12.50910783]
[1734544553796,12.50910783,217.03,216.95,12.50910783]
[1734544554415,12.50910783,216.99,216.9,21.6271]
[1734544554585,12.50910783,216.97,216.9,1.6271]
[1734544554792,12.50910783,216.97,216.89,12.50910783]
[1734544555517,19.02420783,216.99,216.91,12.50910783]
[1734544556307,19.02420783,216.99,216.9,12.50910783]
[1734544556614,12.50910783,216.99,216.9,12.50910783]
[1734544559799,12.50910783,216.97,216.9,12.50910783]
[1734544561122,12.50910783,216.97,216.89,0.12549]
[1734544561423,12.50910783,216.95,216.86,12.50910783]
[1734544561726,12.50910783,216.9,216.82,12.50910783]
[1734544563098,12.50910783,216.92,216.84,12.50910783]